bitfinex/quotes_BTCUSD_20240819
["timestamp","ask_amount","ask_price","bid_price","bid_amount"]
[1724056088150,0.00424041,58714.0,58713.0,4.26738415]
[1724056089942,0.00424041,58714.0,58713.0,4.27558203]
[1724056090925,0.00424041,58714.0,58713.0,4.18608149]
[1724056091174,0.00424041,58714.0,58713.0,4.27558195]
[1724056091321,0.00424041,58714.0,58713.0,4.2755819]
[1724056091952,0.00424041,58714.0,58713.0,4.10539026]
[1724056092160,0.00424041,58714.0,58713.0,4.27658184]
[1724056092528,0.00424041,58714.0,58713.0,4.14035671]
[1724056092695,0.00424041,58714.0,58713.0,4.1490327]
[1724056094694,0.00424041,58714.0,58713.0,4.14903207]
[1724056094898,0.00424041,58714.0,58713.0,4.25103534]
[1724056095115,0.00424041,58714.0,58713.0,4.22545013]
[1724056095369,0.00424041,58714.0,58713.0,4.25103702]
[1724056097730,0.00424041,58714.0,58713.0,4.14903375]
[1724056098338,0.00424041,58714.0,58713.0,4.14803375]
[1724056098540,0.00424041,58714.0,58713.0,4.14903375]
[1724056099208,0.00424041,58714.0,58713.0,4.14803375]
[1724056099412,0.00424041,58714.0,58713.0,4.14803899]
[1724056099980,0.00424041,58714.0,58713.0,4.14803809]
[1724056100176,0.00424041,58714.0,58713.0,4.14903809]
[1724056100392,0.00424041,58714.0,58713.0,4.14803809]
[1724056100393,0.00373056,58714.0,58713.0,4.14803809]
[1724056100590,0.00373056,58714.0,58713.0,3.62925197]
[1724056101624,0.00373056,58714.0,58713.0,3.7057364]
[1724056102381,0.00373056,58714.0,58713.0,3.62925197]
[1724056102582,0.00373056,58714.0,58713.0,3.7057364]
[1724056103021,0.00373056,58714.0,58713.0,4.10911813]
[1724056103425,0.00373056,58714.0,58713.0,4.1876139]
[1724056103600,0.00373056,58714.0,58713.0,4.11112947]
[1724056104219,0.00373056,58714.0,58713.0,4.35899425]
[1724056104662,0.00373056,58714.0,58713.0,4.32380033]
[1724056104905,0.00373056,58714.0,58713.0,4.35899372]
[1724056106720,0.00373056,58714.0,58713.0,4.30288769]
[1724056106923,0.00373056,58714.0,58713.0,4.35899372]
[1724056107539,0.00373056,58714.0,58713.0,4.36922794]
[1724056108194,0.00373056,58714.0,58713.0,4.6622483]
[1724056108398,4e-08,58718.0,58717.0,2.021188]
[1724056108601,4e-08,58718.0,58717.0,2.98121263]
[1724056108809,4e-08,58718.0,58717.0,3.0067978]
[1724056109013,4e-08,58718.0,58717.0,4.5067978]
[1724056109227,4e-08,58718.0,58717.0,4.58529223]
[1724056110213,4e-08,58718.0,58717.0,4.59529223]
[1724056110424,4e-08,58718.0,58717.0,4.47879223]
[1724056110627,4e-08,58718.0,58717.0,4.10117623]
[1724056110798,4e-08,58718.0,58717.0,4.08887623]
[1724056111372,4e-08,58718.0,58717.0,4.07487623]
[1724056111583,0.14080004,58718.0,58717.0,3.97137623]
[1724056111800,0.14080004,58718.0,58717.0,4.08787623]
[1724056112152,0.07580004,58718.0,58717.0,4.0878709]
[1724056112357,0.07580004,58718.0,58717.0,4.0981039]
[1724056113349,0.07580004,58718.0,58717.0,4.08406384]
[1724056113584,4e-08,58718.0,58717.0,4.22926384]
[1724056113801,4e-08,58718.0,58717.0,4.11206384]
[1724056114022,0.14080004,58718.0,58717.0,4.09806384]
[1724056114224,0.07580004,58718.0,58717.0,4.09806384]
[1724056114383,0.07580004,58718.0,58717.0,4.09806343]
[1724056114783,0.07580004,58718.0,58717.0,4.11206343]
[1724056115178,4e-08,58718.0,58717.0,4.11206343]
[1724056115997,4e-08,58718.0,58717.0,3.8826705]
[1724056116237,4e-08,58718.0,58717.0,4.11205262]
[1724056116643,4e-08,58718.0,58717.0,3.8826705]
[1724056116843,4e-08,58718.0,58717.0,4.11205262]
[1724056117263,4e-08,58718.0,58717.0,4.11305262]
[1724056117660,4e-08,58718.0,58717.0,4.64088738]
[1724056117829,4e-08,58718.0,58717.0,4.64188738]
[1724056118044,4e-08,58718.0,58717.0,4.78470197]
[1724056119839,4e-08,58718.0,58717.0,4.79393485]
[1724056120058,4e-08,58718.0,58717.0,4.67743485]
[1724056120305,4e-08,58718.0,58717.0,4.79393289]
[1724056120683,4e-08,58718.0,58717.0,4.64088525]
[1724056120943,0.14040004,58718.0,58717.0,4.64088525]
[1724056121149,0.14040004,58718.0,58717.0,4.11205049]
[1724056121364,0.14040004,58718.0,58717.0,4.52439068]
[1724056121571,0.14040004,58718.0,58717.0,4.10181754]
[1724056121780,0.14040004,58718.0,58717.0,4.0254137]
[1724056121987,0.14040004,58718.0,58717.0,3.99988289]
[1724056123154,0.14040004,58718.0,58717.0,4.09988289]
[1724056123579,0.14040004,58718.0,58717.0,3.99774649]
[1724056124208,0.14040004,58718.0,58717.0,3.44907584]
[1724056124485,0.14040004,58718.0,58717.0,0.58331738]
[1724056124750,0.14040004,58718.0,58717.0,0.0841064]
[1724056125018,0.15957704,58718.0,58717.0,0.04891278]
[1724056125267,0.15957704,58718.0,58717.0,0.03491278]
[1724056125946,0.15957704,58718.0,58717.0,0.04891278]
[1724056126167,0.15957704,58718.0,58717.0,0.04891624]
[1724056126368,0.15957704,58718.0,58717.0,0.03491624]
[1724056126369,0.32988204,58718.0,58717.0,0.03491624]
[1724056126689,0.32988204,58718.0,58717.0,0.014]
[1724056127207,0.32988204,58718.0,58717.0,0.028]
[1724056127535,0.15957704,58718.0,58717.0,0.014]
[1724056127739,0.15957704,58718.0,58717.0,0.012]
[1724056127944,0.15957704,58718.0,58717.0,0.0129042]
[1724056127945,0.32988204,58718.0,58717.0,0.0129042]
[1724056129395,0.15957704,58718.0,58717.0,0.0249042]
[1724056129798,0.15957704,58718.0,58717.0,0.0129042]
[1724056129999,0.32988204,58718.0,58717.0,0.0129042]
[1724056130206,0.32988204,58718.0,58717.0,0.0249042]
[1724056136441,0.67049304,58718.0,58717.0,0.0249042]
[1724056136802,0.32988204,58718.0,58717.0,0.0249042]
[1724056139799,0.15957704,58718.0,58717.0,0.0249042]
[1724056141896,0.32988204,58718.0,58717.0,0.0249042]
[1724056142130,0.15957704,58718.0,58717.0,0.0249042]
[1724056149164,0.32988204,58718.0,58717.0,0.0249042]
[1724056150003,0.15957704,58718.0,58717.0,0.0249042]
[1724056151084,0.15957704,58718.0,58717.0,0.1952122]
[1724056153288,0.15957704,58718.0,58717.0,0.21612996]
[1724056154342,0.15957704,58718.0,58717.0,0.04582196]
[1724056154936,0.32988204,58718.0,58717.0,0.04582196]
[1724056155225,0.32988204,58718.0,58717.0,0.04582252]
[1724056157210,0.15957704,58718.0,58717.0,0.04582252]
[1724056158283,0.15957704,58718.0,58717.0,0.21613052]
[1724056158479,0.15957704,58718.0,58717.0,0.04582252]
[1724056158931,0.15957704,58718.0,58717.0,0.21613052]
[1724056159128,0.15957704,58718.0,58717.0,0.21613041]
[1724056159841,0.09477704,58718.0,58717.0,0.21613041]
[1724056163244,0.09477704,58718.0,58717.0,0.1952122]
[1724056163447,0.09477704,58718.0,58717.0,0.21612993]
[1724056163899,0.09477704,58718.0,58717.0,0.21612997]
[1724056168987,0.09477704,58718.0,58717.0,0.55674597]
[1724056169395,0.01917704,58718.0,58717.0,0.55674597]
[1724056170369,0.01917704,58718.0,58717.0,0.59194653]
[1724056171955,0.01917704,58718.0,58717.0,1.07186253]
[1724056172356,4e-08,58718.0,58717.0,1.07186253]
[1724056173802,4e-08,58718.0,58717.0,1.74537901]
[1724056174515,4e-08,58718.0,58717.0,3.24537901]
[1724056174737,4e-08,58718.0,58717.0,3.23337901]
[1724056174955,4e-08,58718.0,58717.0,3.1859161]
[1724056175132,4e-08,58718.0,58717.0,1.63241474]
[1724056175333,4e-08,58718.0,58717.0,1.72129412]
[1724056175822,4e-08,58718.0,58717.0,3.14379746]
[1724056176035,4e-08,58718.0,58717.0,3.20929412]
[1724056176242,4e-08,58718.0,58717.0,3.22329412]
[1724056176851,4e-08,58718.0,58717.0,3.22329398]
[1724056178260,4e-08,58718.0,58717.0,3.17871296]
[1724056178637,4e-08,58718.0,58717.0,3.2139109]
[1724056181656,4e-08,58718.0,58717.0,3.20452826]
[1724056182469,4e-08,58718.0,58717.0,3.21391086]
[1724056183626,4e-08,58718.0,58717.0,3.21391085]
[1724056184378,4e-08,58718.0,58717.0,3.20452826]
[1724056185128,4e-08,58718.0,58717.0,3.14841474]
[1724056185336,4e-08,58718.0,58717.0,3.20452796]
[1724056187470,4e-08,58718.0,58717.0,3.06522796]
[1724056188472,4e-08,58718.0,58717.0,3.07461055]
[1724056189204,4e-08,58718.0,58717.0,3.01849733]
[1724056189402,4e-08,58718.0,58717.0,3.05369421]
[1724056189610,4e-08,58718.0,58717.0,3.11007179]
[1724056189810,4e-08,58718.0,58717.0,3.00911474]
[1724056190013,4e-08,58718.0,58717.0,3.11007099]
[1724056191976,4e-08,58718.0,58717.0,1.49357099]
[1724056193426,4e-08,58718.0,58717.0,1.39261474]
[1724056193616,4e-08,58718.0,58717.0,1.49357098]
[1724056194345,4e-08,58718.0,58717.0,1.32201644]
[1724056194520,0.07940004,58718.0,58717.0,1.32201644]
[1724056194971,0.07940004,58718.0,58717.0,1.28655395]
[1724056195287,0.07940004,58718.0,58717.0,1.32201671]
[1724056195461,0.07940004,58718.0,58717.0,1.32201708]
[1724056195666,4e-08,58718.0,58717.0,1.32201708]
[1724056196651,4e-08,58718.0,58717.0,1.49357162]
[1724056197632,4e-08,58718.0,58717.0,1.44738812]
[1724056197833,4e-08,58718.0,58717.0,1.50349961]
[1724056198467,4e-08,58718.0,58717.0,3.00349961]
[1724056199226,4e-08,58718.0,58717.0,3.34411561]
[1724056199428,4e-08,58718.0,58717.0,3.44411561]
[1724056200662,4e-08,58718.0,58717.0,3.60232137]
[1724056200863,4e-08,58718.0,58717.0,3.64772442]
[1724056201068,4e-08,58718.0,58717.0,3.93595682]
[1724056201245,4e-08,58718.0,58717.0,4.07222284]
[1724056201482,4e-08,58718.0,58717.0,4.10741665]
[1724056201684,4e-08,58718.0,58717.0,3.92222374]
[1724056201858,4e-08,58718.0,58717.0,4.05337649]
[1724056202086,4e-08,58718.0,58717.0,4.10741627]
[1724056202435,4e-08,58718.0,58717.0,4.09341627]
[1724056202761,4e-08,58718.0,58717.0,4.10741627]
[1724056203403,4e-08,58718.0,58717.0,3.72962348]
[1724056203610,4e-08,58718.0,58717.0,4.10741001]
[1724056204454,4e-08,58718.0,58717.0,4.10739365]
[1724056205490,4e-08,58718.0,58717.0,3.72960712]
[1724056207713,4e-08,58718.0,58717.0,3.84610712]
[1724056208495,4e-08,58718.0,58717.0,3.73102113]
[1724056208703,4e-08,58718.0,58717.0,3.74289423]
[1724056208874,4e-08,58718.0,58717.0,3.7074335]
[1724056209428,4e-08,58718.0,58717.0,2.2074335]
[1724056209627,4e-08,58718.0,58717.0,2.53118026]
[1724056210455,4e-08,58718.0,58717.0,2.15339372]
[1724056210658,4e-08,58718.0,58717.0,2.53118025]
[1724056212508,4e-08,58718.0,58717.0,2.44948818]
[1724056212642,4e-08,58718.0,58717.0,2.53118025]
[1724056213048,4e-08,58718.0,58717.0,2.49571958]
[1724056213253,4e-08,58718.0,58717.0,2.53118025]
[1724056213477,4e-08,58718.0,58717.0,4.03118025]
[1724056213657,4e-08,58718.0,58717.0,4.11074724]
[1724056214905,4e-08,58718.0,58717.0,2.61074724]
[1724056215106,4e-08,58718.0,58717.0,2.55670746]
[1724056215580,4e-08,58718.0,58717.0,2.99245441]
[1724056215977,4e-08,58718.0,58717.0,3.15585187]
[1724056216176,4e-08,58718.0,58717.0,3.25168054]
[1724056216473,4e-08,58718.0,58717.0,2.99224756]
[1724056216680,4e-08,58718.0,58717.0,3.24791081]
[1724056216892,4e-08,58718.0,58717.0,3.26191081]
[1724056217280,4e-08,58718.0,58717.0,3.23391081]
[1724056217500,4e-08,58718.0,58717.0,3.09474756]
[1724056217694,4e-08,58718.0,58717.0,3.13174756]
[1724056218154,4e-08,58718.0,58717.0,3.11774756]
[1724056218557,4e-08,58718.0,58717.0,3.13174756]
[1724056218930,4e-08,58718.0,58717.0,4.51368468]
[1724056219112,4e-08,58718.0,58717.0,4.60374756]
[1724056219336,4e-08,58718.0,58717.0,4.62151729]
[1724056219536,4e-08,58718.0,58717.0,4.61651729]
[1724056219737,4e-08,58718.0,58717.0,4.45331729]
[1724056219939,4e-08,58718.0,58717.0,4.13626895]
[1724056220142,4e-08,58718.0,58717.0,4.0467685]
[1724056220324,4e-08,58718.0,58717.0,4.13626386]
[1724056220524,4e-08,58718.0,58717.0,4.08015732]
[1724056220935,4e-08,58718.0,58717.0,4.13626163]
[1724056222964,4e-08,58718.0,58717.0,4.21856163]
[1724056224218,4e-08,58718.0,58717.0,4.13626163]
[1724056224801,4e-08,58718.0,58717.0,4.13626087]
[1724056225407,4e-08,58718.0,58717.0,4.00863505]
[1724056226474,4e-08,58718.0,58717.0,4.13626559]
[1724056227353,0.06470004,58718.0,58717.0,4.13626559]
[1724056227754,4e-08,58718.0,58717.0,4.13626559]
[1724056228969,4e-08,58718.0,58717.0,3.96507643]
[1724056229189,4e-08,58718.0,58717.0,4.13626564]
[1724056232574,4e-08,58718.0,58717.0,4.11077187]
[1724056232776,4e-08,58718.0,58717.0,2.49427187]
[1724056232777,0.14050004,58718.0,58717.0,2.49427187]
[1724056232977,0.14050004,58718.0,58717.0,2.3921351]
[1724056233211,0.14050004,58718.0,58717.0,2.45253914]
[1724056233424,0.14050004,58718.0,58717.0,2.46874399]
[1724056233976,0.14050004,58718.0,58717.0,1.5863739]
[1724056234186,0.14050004,58718.0,58717.0,1.22955345]
[1724056234466,0.14050004,58718.0,58717.0,1.15294786]
[1724056234877,0.14050004,58718.0,58717.0,1.13894786]
[1724056235123,0.14050004,58718.0,58717.0,0.98139332]
[1724056235383,0.14050004,58718.0,58717.0,0.64077732]
[1724056235595,0.14050004,58718.0,58717.0,0.25070113]
[1724056235802,0.15965335,58718.0,58717.0,0.18059372]
[1724056235999,0.15965335,58718.0,58717.0,0.22012826]
[1724056236204,0.15965335,58718.0,58717.0,0.56074426]
[1724056236405,0.15965335,58718.0,58717.0,0.54674426]
[1724056236610,0.15965335,58718.0,58717.0,0.56074426]
[1724056237363,0.15965335,58718.0,58717.0,0.03582026]
[1724056237568,0.15965335,58718.0,58717.0,0.0149042]
[1724056237785,0.15965335,58718.0,58717.0,0.0289042]
[1724056238000,0.15965335,58718.0,58717.0,0.0149042]
[1724056238171,0.15965335,58718.0,58717.0,0.0009042]
[1724056238581,0.15965335,58718.0,58717.0,0.0149042]
[1724056239301,0.15965335,58718.0,58717.0,0.0289042]
[1724056240443,0.32995835,58718.0,58717.0,0.0289042]
[1724056240904,0.15965335,58718.0,58717.0,0.0289042]
[1724056242064,0.32995835,58718.0,58717.0,0.0289042]
[1724056242262,0.67056935,58718.0,58717.0,0.0289042]
[1724056242679,0.32995835,58718.0,58717.0,0.0289042]
[1724056242897,0.67056935,58718.0,58717.0,0.0289042]
[1724056244115,1.01118035,58718.0,58717.0,0.0289042]
[1724056245135,0.67056935,58718.0,58717.0,0.0149042]
[1724056245481,0.67056935,58718.0,58717.0,0.0229042]
[1724056245683,0.67056935,58718.0,58717.0,0.0089042]
[1724056245893,1.12396709,58718.0,58717.0,0.0089042]
[1724056247092,1.01118035,58718.0,58717.0,0.0089042]
[1724056247292,1.01118035,58718.0,58717.0,0.0169042]
[1724056250173,1.35179135,58718.0,58717.0,0.0169042]
[1724056250376,1.37779135,58718.0,58717.0,0.0169042]
[1724056250583,1.37479135,58718.0,58717.0,0.0169042]
[1724056250792,1.54634589,58718.0,58717.0,0.0169042]
[1724056251195,1.54634589,58718.0,58717.0,0.0089042]
[1724056251398,1.54634589,58718.0,58717.0,0.0009042]
[1724056251602,1.01118035,58718.0,58717.0,0.0049042]
[1724056252016,0.15965335,58718.0,58717.0,0.0049042]
[1724056252220,0.15965335,58718.0,58717.0,0.0029042]
[1724056253586,0.15965335,58718.0,58717.0,0.0049042]
[1724056254575,0.32995835,58718.0,58717.0,0.0049042]
[1724056254826,0.44645835,58718.0,58717.0,0.0049042]
[1724056261888,0.32995835,58718.0,58717.0,0.0049042]
[1724056262932,0.15965335,58718.0,58717.0,0.0049042]
[1724056263495,0.32995835,58718.0,58717.0,0.0049042]
[1724056263697,1.20640599,58718.0,58717.0,0.0049042]
[1724056264064,1.12768035,58718.0,58717.0,0.0049042]
[1724056269301,1.18186834,58718.0,58717.0,0.0049042]
[1724056271513,1.52247934,58718.0,58717.0,0.0049042]
[1724056274088,1.52547934,58718.0,58717.0,0.0049042]
[1724056274263,1.54847934,58718.0,58717.0,0.0049042]
[1724056274477,1.59934777,58718.0,58717.0,0.0049042]
[1724056274683,1.64120327,58718.0,58717.0,0.0049042]
[1724056276394,1.59033484,58718.0,58717.0,0.0049042]
[1724056276599,1.58633484,58718.0,58717.0,0.0049042]
[1724056276798,1.66263749,58718.0,58717.0,0.0049042]
[1724056277211,1.58633484,58718.0,58717.0,0.0049042]
[1724056277420,1.66463749,58718.0,58717.0,0.0049042]
[1724056277610,1.66663749,58718.0,58717.0,0.0049042]
[1724056278356,1.69207171,58718.0,58717.0,0.0049042]
[1724056278616,2.03268271,58718.0,58717.0,0.0049042]
[1724056278823,2.03094584,58718.0,58717.0,0.0049042]
[1724056279407,2.03094584,58718.0,58717.0,0.0029042]
[1724056279573,2.18355114,58718.0,58717.0,0.0029042]
[1724056279778,2.18555114,58718.0,58717.0,0.0039042]
[1724056280202,2.03094584,58718.0,58717.0,0.0009042]
[1724056280409,2.18555114,58718.0,58717.0,0.0019042]
[1724056280619,2.18555114,58718.0,58717.0,0.0009042]
[1724056281031,2.18755114,58718.0,58717.0,0.0019042]
[1724056281252,2.18555114,58718.0,58717.0,0.0019042]
[1724056281463,2.18755114,58718.0,58717.0,0.0029042]
[1724056283081,2.1976403,58718.0,58717.0,0.0029042]
[1724056283487,1.7006738,58718.0,58717.0,0.0029042]
[1724056283689,1.6645685,58718.0,58717.0,0.0029042]
[1724056288094,1.6645685,58718.0,58717.0,0.0028642]
[1724056288280,2.0051795,58718.0,58717.0,0.0028642]
[1724056291789,1.5440685,58718.0,58717.0,0.0028642]
[1724056291983,1.83068779,58718.0,58717.0,0.0028642]
[1724056293877,1.83468779,58718.0,58717.0,0.0028642]
[1724056294290,2.17529879,58718.0,58717.0,0.0028642]
[1724056295062,2.32822318,58718.0,58717.0,0.0028642]
[1724056295276,2.17529879,58718.0,58717.0,0.0028642]
[1724056297331,2.3282061,58718.0,58717.0,0.0028642]
[1724056300466,2.17529879,58718.0,58717.0,0.0028642]
[1724056303993,1.81749939,58718.0,58717.0,0.0028642]
[1724056304354,1.81749909,58718.0,58717.0,0.0028642]
[1724056304923,1.6645685,58718.0,58717.0,0.0028642]
[1724056305109,1.81751633,58718.0,58717.0,0.0028642]
[1724056306748,1.75621633,58718.0,58717.0,0.0028642]
[1724056307372,1.6032685,58718.0,58717.0,0.0028642]
[1724056307906,1.5992685,58718.0,58717.0,0.0028642]
[1724056308081,1.5200685,58718.0,58717.0,0.0028642]
[1724056309759,1.29247934,58718.0,58717.0,0.0028642]
[1724056310115,0.83228659,58718.0,58717.0,0.0028642]
[1724056310321,0.70475734,58718.0,58717.0,0.0028642]
[1724056310520,0.80679045,58718.0,58717.0,0.0028642]
[1724056310723,0.80479045,58718.0,58717.0,0.0018642]
[1724056311047,0.80279045,58718.0,58717.0,0.0008642]
[1724056311258,0.80979045,58718.0,58717.0,0.1446642]
[1724056311906,1.15040145,58718.0,58717.0,0.1446642]
[1724056312543,0.80779045,58718.0,58717.0,0.1436642]
[1724056312752,1.14840145,58718.0,58717.0,0.1436642]
[1724056312982,0.69329045,58718.0,58717.0,0.1436642]
[1724056313195,0.80979045,58718.0,58717.0,0.1436642]
[1724056313399,0.70775734,58718.0,58717.0,0.1436642]
[1724056314007,0.8097784,58718.0,58717.0,0.1436642]
[1724056314415,0.70775734,58718.0,58717.0,0.1436642]
[1724056315363,0.7936066,58718.0,58717.0,0.1436642]
[1724056315740,0.89563338,58718.0,58717.0,0.1436642]
[1724056317114,1.1342176,58718.0,58717.0,0.0008642]
[1724056317289,1.26175197,58718.0,58717.0,0.0008642]
[1724056317873,0.92114097,58718.0,58717.0,0.0008642]
[1724056318304,0.83529171,58718.0,58717.0,0.0008642]
[1724056318709,1.17590271,58718.0,58717.0,0.0008642]
[1724056320207,1.04836834,58718.0,58717.0,0.0008642]
[1724056321325,0.70775734,58718.0,58717.0,0.0008642]
[1724056322248,1.04836834,58718.0,58717.0,0.0008642]
[1724056322748,0.35268177,58718.0,58717.0,0.0008642]
[1724056322948,0.08034134,58718.0,58717.0,0.1473642]
[1724056323162,0.07717656,58718.0,58717.0,0.3176722]
[1724056323369,0.02615335,58718.0,58717.0,0.3176722]
[1724056324200,0.02115335,58718.0,58717.0,0.3176722]
[1724056324413,0.01915335,58718.0,58717.0,0.3206722]
[1724056326174,0.02015335,58718.0,58717.0,0.3206722]
[1724056326585,0.01915335,58718.0,58717.0,0.3206722]
[1724056327010,0.01915335,58718.0,58717.0,0.3226722]
[1724056329082,0.01915335,58718.0,58717.0,1.0039042]
[1724056329505,4e-08,58718.0,58717.0,1.0039042]
[1724056331631,4e-08,58718.0,58717.0,1.3445202]
[1724056331804,4e-08,58718.0,58717.0,1.51607474]
[1724056332455,4e-08,58718.0,58717.0,1.51307474]
[1724056332680,4e-08,58718.0,58717.0,1.51107474]
[1724056332896,4e-08,58718.0,58717.0,1.51907474]
[1724056333900,0.00100004,58718.0,58717.0,1.52807474]
[1724056339266,0.00100004,58718.0,58717.0,1.37743704]
[1724056339491,0.00100004,58718.0,58717.0,1.03682104]
[1724056339696,0.00100004,58718.0,58717.0,1.0159042]
[1724056340623,0.00100004,58718.0,58717.0,1.03682108]
[1724056344547,0.00100004,58718.0,58717.0,1.01576958]
[1724056344748,0.00100004,58718.0,58717.0,1.03668638]
[1724056348910,0.00100004,58718.0,58717.0,1.03668633]
[1724056350581,0.14800004,58718.0,58717.0,0.01772958]
[1724056350784,0.14800004,58718.0,58717.0,0.03864704]
[1724056350984,0.16692139,58718.0,58717.0,0.01772958]
[1724056351200,0.10202139,58718.0,58717.0,0.01772958]
[1724056351780,0.10202139,58718.0,58717.0,0.03864713]
[1724056352375,0.27232639,58718.0,58717.0,0.03864713]
[1724056352573,0.10202139,58718.0,58717.0,0.03864713]
[1724056352976,0.10202139,58718.0,58717.0,0.18803758]
[1724056353338,0.10202139,58718.0,58717.0,0.20895536]
[1724056354862,0.01992139,58718.0,58717.0,0.35205536]
[1724056355218,0.00100004,58718.0,58717.0,0.35205536]
[1724056355415,0.00100004,58718.0,58717.0,1.03328736]
[1724056355822,0.00100004,58718.0,58717.0,1.2048419]
[1724056356060,0.00100004,58718.0,58717.0,3.0454579]
[1724056357113,0.00100004,58718.0,58717.0,3.04545678]
[1724056357318,0.00100004,58718.0,58717.0,1.54545678]
[1724056357524,0.00100004,58718.0,58717.0,1.54545677]
[1724056357723,0.00100004,58718.0,58717.0,1.56637342]
[1724056358130,0.00100004,58718.0,58717.0,1.60157374]
[1724056358645,0.00100004,58718.0,58717.0,1.71807374]
[1724056359251,0.00100004,58718.0,58717.0,1.69715709]
[1724056361548,0.00100004,58718.0,58717.0,1.58065709]
[1724056367615,0.00100004,58718.0,58717.0,1.43755709]
[1724056368480,0.00100004,58718.0,58717.0,2.93755709]
[1724056368910,0.00100004,58718.0,58717.0,2.88144012]
[1724056369131,0.00100004,58718.0,58717.0,2.92955709]
[1724056369392,0.00100004,58718.0,58717.0,2.92055709]
[1724056369393,4e-08,58718.0,58717.0,2.92055709]
[1724056369576,4e-08,58718.0,58717.0,0.57877055]
[1724056369772,4e-08,58718.0,58717.0,0.55557023]
[1724056369773,0.08320004,58718.0,58717.0,0.55557023]
[1724056369972,0.10212448,58718.0,58717.0,0.55557023]
[1724056371361,0.10212448,58718.0,58717.0,0.21495423]
[1724056372647,0.10212448,58718.0,58717.0,0.21388056]
[1724056374561,0.10212448,58718.0,58717.0,0.21231144]
[1724056374933,0.10212448,58718.0,58717.0,0.21164529]
[1724056376288,0.10212448,58718.0,58717.0,0.21254949]
[1724056376564,0.10212448,58718.0,58717.0,0.55316549]
[1724056377245,0.10212448,58718.0,58717.0,0.55265275]
[1724056378837,0.10212448,58718.0,58717.0,0.55090346]
[1724056379072,0.10212448,58718.0,58717.0,0.55023858]
[1724056379484,0.10212448,58718.0,58717.0,0.20962258]
[1724056379690,0.10212448,58718.0,58717.0,0.55023858]
[1724056380510,0.10212448,58718.0,58717.0,0.54958258]
[1724056380747,0.10212448,58718.0,58717.0,0.52866593]
[1724056380952,0.10212448,58718.0,58717.0,0.54958355]
[1724056381280,0.10212448,58718.0,58717.0,0.54958338]
[1724056383632,0.10212448,58718.0,58717.0,0.52866593]
[1724056383834,0.10212448,58718.0,58717.0,0.54958281]
[1724056384047,0.01992448,58718.0,58717.0,0.89019881]
[1724056384452,0.00100004,58718.0,58717.0,0.89019881]
[1724056385092,0.00100004,58718.0,58717.0,1.06175335]
[1724056385493,0.00100004,58718.0,58717.0,1.40236935]
[1724056386107,0.00100004,58718.0,58717.0,1.43756925]
[1724056386314,0.00100004,58718.0,58717.0,1.58306925]
[1724056386525,0.00100004,58718.0,58717.0,1.62791794]
[1724056387548,0.00100004,58718.0,58717.0,1.60699865]
[1724056387687,0.00100004,58718.0,58717.0,1.62791396]
[1724056388735,0.00100004,58718.0,58717.0,2.09745626]
[1724056388937,0.00100004,58718.0,58717.0,2.02020422]
[1724056389135,0.00100004,58718.0,58717.0,2.08068506]
[1724056389334,0.00100004,58718.0,58717.0,1.74268515]
[1724056389702,0.00100004,58718.0,58717.0,1.79379932]
[1724056389885,0.00100004,58718.0,58717.0,1.74268515]
[1724056390118,0.00100004,58718.0,58717.0,1.79379893]
[1724056390967,0.00100004,58718.0,58717.0,3.24268515]
[1724056391389,0.00100004,58718.0,58717.0,3.2583174]
[1724056391601,0.00100004,58718.0,58717.0,3.58329393]
[1724056391806,0.00100004,58718.0,58717.0,3.65995248]
[1724056392014,0.00100004,58718.0,58717.0,3.65995242]
[1724056392479,0.00100004,58718.0,58717.0,3.58329387]
[1724056393127,4e-08,58718.0,58717.0,3.57129334]
[1724056393330,4e-08,58718.0,58717.0,3.63637545]
[1724056393528,4e-08,58718.0,58717.0,3.62537545]
[1724056393730,4e-08,58718.0,58717.0,3.63937545]
[1724056395109,4e-08,58718.0,58717.0,3.64037545]
[1724056395365,4e-08,58718.0,58717.0,3.68929334]
[1724056395566,4e-08,58718.0,58717.0,3.74036156]
[1724056395914,4e-08,58718.0,58717.0,3.73936156]
[1724056396110,4e-08,58718.0,58717.0,3.74036156]
[1724056396761,4e-08,58718.0,58717.0,3.7658959]
[1724056397363,4e-08,58718.0,58717.0,3.68929281]
[1724056397563,4e-08,58718.0,58717.0,3.69129281]
[1724056398373,4e-08,58718.0,58717.0,4.08095956]
[1724056398571,4e-08,58718.0,58717.0,4.50050073]
[1724056398798,4e-08,58718.0,58717.0,4.50163867]
[1724056399032,4e-08,58718.0,58717.0,4.50093395]
[1724056399688,4e-08,58718.0,58717.0,4.44947022]
[1724056399890,4e-08,58718.0,58717.0,4.48893259]
[1724056400091,4e-08,58718.0,58717.0,4.50293259]
[1724056400374,4e-08,58718.0,58717.0,4.10714786]
[1724056400525,4e-08,58718.0,58717.0,4.12114786]
[1724056400719,4e-08,58718.0,58717.0,4.10710297]
[1724056400935,4e-08,58718.0,58717.0,4.12110297]
[1724056401336,4e-08,58718.0,58717.0,4.02834067]
[1724056402061,4e-08,58718.0,58717.0,4.03034067]
[1724056402466,4e-08,58718.0,58717.0,4.03234067]
[1724056403459,4e-08,58718.0,58717.0,4.04854461]
[1724056403657,4e-08,58718.0,58717.0,3.97788653]
[1724056403982,4e-08,58718.0,58717.0,4.48036076]
[1724056404183,4e-08,58718.0,58717.0,4.48035413]
[1724056404384,4e-08,58718.0,58717.0,4.50593641]
[1724056404609,4e-08,58718.0,58717.0,4.41643551]
[1724056404789,4e-08,58718.0,58717.0,4.52889225]
[1724056405382,4e-08,58718.0,58717.0,4.52889161]
[1724056405515,4e-08,58718.0,58717.0,4.51489161]
[1724056405718,4e-08,58718.0,58717.0,4.52889161]
[1724056405923,4e-08,58718.0,58717.0,4.51489161]
[1724056406330,4e-08,58718.0,58717.0,4.64236501]
[1724056406531,4e-08,58718.0,58717.0,4.50170201]
[1724056406729,4e-08,58718.0,58717.0,4.65636499]
[1724056407438,4e-08,58718.0,58717.0,4.65236499]
[1724056407662,4e-08,58718.0,58717.0,4.63345408]
[1724056407870,4e-08,58718.0,58717.0,4.65436371]
[1724056408695,4e-08,58718.0,58717.0,4.65636371]
[1724056408901,4e-08,58718.0,58717.0,4.65609771]
[1724056409561,4e-08,58718.0,58717.0,4.52862431]
[1724056410318,4e-08,58718.0,58717.0,4.63055114]
[1724056411589,4e-08,58718.0,58717.0,4.48988816]
[1724056411822,4e-08,58718.0,58717.0,4.63055114]
[1724056413452,0.0002,58719.0,58718.0,1.87836]
[1724056413655,0.0002,58719.0,58718.0,2.966606]
[1724056414184,0.0002,58719.0,58718.0,4.38811597]
[1724056414357,0.0002,58719.0,58718.0,4.466606]
[1724056414591,0.0002,58719.0,58718.0,4.47683891]
[1724056414839,0.0002,58719.0,58718.0,4.61831231]
[1724056415472,0.0002,58719.0,58718.0,4.49083891]
[1724056415677,0.0002,58719.0,58718.0,4.48392044]